{"text_format":"1","workbook":"xlsx","n_sheets":1,"sheets":["Form"],"not_rendered":{"charts":0,"images":7,"macros":1,"external_links":0,"defined_names":17,"comments":0,"pivot_tables":0},"unopened":[],"bounds":{"document_bytes":16777216,"sheet_cells":100000,"rows_first":2000,"rows_last":500,"rows_between":2000,"halvings":0,"cell_chars":16384,"cell_head_chars":4096},"cells_cut":0,"cells_raw":0,"read":"whole","date_system":"1900"}

{"sheet":"Form","index":0,"n_rows":74,"n_cols":27,"rows_kept":74,"cut":false,"hidden":false,"merged":[[65,19,70,23],[36,19,38,23],[40,19,47,23],[49,19,52,23],[54,19,63,23],[15,25,15,26],[40,25,40,26],[67,1,67,17],[23,19,34,23],[27,10,27,13],[27,14,27,17],[23,1,23,17],[4,11,4,12],[13,15,13,17],[21,15,21,17],[4,19,6,23],[8,19,12,23],[14,19,21,23],[10,1,10,6],[21,1,22,6],[10,7,22,10],[24,14,24,17],[10,11,10,12],[14,11,14,12],[16,11,16,13],[8,11,8,14],[25,6,38,9],[25,10,26,13],[24,1,24,5],[59,12,60,13],[55,2,56,6],[65,7,66,12],[65,14,66,17],[59,2,60,5],[66,1,66,6],[51,1,52,2],[64,1,64,17],[59,7,60,8],[61,1,63,17],[55,1,56,1],[57,1,58,1],[53,1,54,2],[51,7,52,8],[59,1,60,1],[59,6,60,6],[53,3,54,6],[51,14,52,16],[57,14,58,16],[59,14,60,16],[57,17,58,17],[59,17,60,17],[55,9,56,11],[51,17,52,17],[59,9,60,11],[57,7,58,8],[3,7,9,10],[24,6,24,9],[4,15,4,17],[46,4,46,5],[40,4,41,4],[40,7,41,7],[42,3,43,4],[42,6,43,7],[49,1,49,6],[40,10,41,10],[25,1,38,5],[45,1,45,2],[47,1,47,2],[46,6,46,7],[40,1,41,1],[40,2,41,2],[42,1,43,2],[46,1,46,3],[48,1,48,2],[45,15,46,16],[40,16,41,16],[2,7,2,10],[1,11,1,13],[5,11,5,12],[19,12,19,13],[6,11,6,12],[7,11,7,12],[13,11,13,12],[0,15,1,17],[1,9,1,10],[3,11,3,14],[0,1,0,8],[1,1,1,3],[3,1,9,6],[11,1,20,6],[1,7,1,8],[5,15,5,17],[2,1,2,6],[2,11,2,14],[6,15,6,17],[7,15,7,17],[18,15,18,17],[14,15,14,17],[10,15,10,17],[20,13,20,14],[53,7,54,8],[55,7,56,8],[42,15,43,16],[57,2,58,6],[51,3,52,5],[51,6,52,6],[24,10,24,13],[25,14,26,17],[53,14,54,17],[55,14,56,17],[42,12,43,13],[51,12,52,13],[57,12,58,13],[40,13,41,13],[42,9,43,10],[55,12,56,13],[53,9,54,11],[53,12,54,13],[51,9,52,11],[57,9,58,11],[42,17,43,17],[29,10,38,13],[29,14,38,17],[72,1,73,2],[72,3,72,4],[72,5,72,6],[72,7,72,8],[72,9,72,10],[72,11,73,12],[72,13,73,17],[73,3,73,4],[73,5,73,6],[73,7,73,8],[73,9,73,10]]}
[null,"Custom Ball Valve Retrofit Solution Form",null,null,null,null,null,null,null,{"$f":"IF(AND(Z47=TRUE, Z48=TRUE),\"In OR mm REQUIRED\",IF(AND(Z47=FALSE,Z48=FALSE),\"In or mm REQUIRED\",\"\"))","v":"In or mm REQUIRED"},"INCHES",null,"MILLIMETERS",null,null,{"$f":"IF(AND(O2=1,OR(J2=\"GM_GK\",J2=\"AM_NM\",J2=\"LM\",J2=\"AF_NF\",J2=\"LF\",J2=\"EF\",J2=\"LM_NM_AM_GM_N4\")),\"UBSP0004\",\n\nIF(AND(O2=2,OR(J2=\"GM_GK\",J2=\"AM_NM\",J2=\"LM\",J2=\"AF_NF\",J2=\"LF\",J2=\"EF\",J2=\"LM_NM_AM_GM_N4\")),\"UBSP0006\",\n\nIF(AND(O2=1,OR(J2=\"SY4_SY5_SY6\",J2=\"SY1_\",J2=\"SY2_SY3\",J2=\"PR_PKR\",J2=\"DK_DR\")),\"UBSP0008\",\n\nIF(AND(O2=1,OR(J2=\"SY7_SY8\", J2=\"SY9_SY10_SY11_SY12\")),\"UBSP0012\",\n\nIF(J2=\"OTHER\",\"\",\"\"))))\n)","v":""},null,null,null,null,null,null,null,null,null,"New Actuators Drop Down List:"]
[null,"UBSP Series",null,null,null,null,null,"NEW ACTUATOR:",null,null,null,"1  OR  2 ACTUATOR(S):",null,null,null,null,null,null,null,null,null,null,null,null,null,"PR_PKR"]
[null,"MOUNT STYLE 1",null,null,null,null,null,"MOUNT STYLE 2",null,null,null,"MOUNT STYLE DIMENSIONS",null,null,null,null,null,null,null,null,null,null,null,null,null,"SY4_SY5_SY6"]
[null,null,null,null,null,null,null,null,null,null,null,"EX: 1.250 OR 1  1/4",null,null,null,null,null,null,null,null,null,null,null,null,null,"SY7_SY8"]
[null,null,null,null,null,null,null,null,null,null,null,"MOUNT STYLE:",null,null,null,{"$f":"IF(NOT(OR(N5=1,N5=2,N5=3,N5=4)),\"MOUNT STYLE REQUIRED\",IF(N5=4,\"SUPPLY MOUNTING SKETCH\",\"\"))","v":"MOUNT STYLE REQUIRED"},null,null,null,"Step 1: Choose the unit of measurement to be used to fill out the form. \nInches or millimeters\n",null,null,null,null,null,"SY9_SY10_SY11_SY12"]
[null,null,null,null,null,null,null,null,null,null,null,"DIM A:",null,null,{"$f":"IF(AND(Z47=TRUE, Z48=FALSE, NOT((ISBLANK(N6)))),\"inch(es)\",IF(AND(Z48=TRUE, Z47=FALSE, NOT((ISBLANK(N6)))),\"mm\",\"\"))","v":""},{"$f":"IF(AND(N5=3,(ISBLANK(N6))),\"CANNOT BE BLANK\",IF(AND(OR(N5=1,N5=2),AND((ISBLANK(N11)),(ISBLANK(N6)),AND(AA53=FALSE,AA54=FALSE,AA55=FALSE,AA56=FALSE,AA57=FALSE,AA58=FALSE,AA59=FALSE,AA61=FALSE,AA60=FALSE))),\"CANNOT BE BLANK\",IF(N5=4,\"MOUNTING SKETCH\",IF(ISNUMBER(SEARCH(\"MM\",N6)),\"DO NOT INCLUDE UNIT OF MEASURE\",IF(ISNUMBER(SEARCH(CHAR(34),N6)),\"DO NOT INCLUDE UNIT OF MEASURE\",IF(ISNUMBER(SEARCH(\"in\",N6)),\"DO NOT INCLUDE UNIT OF MEASURE\",\" \"))))))","v":" "},null,null,null,null,null,null,null,null,null,"GM_GK"]
[null,null,null,null,null,null,null,null,null,null,null,"DIM B:",null,null,{"$f":"IF(AND(Z47=TRUE, Z48=FALSE, NOT((ISBLANK(N7)))),\"inch(es)\",IF(AND(Z48=TRUE, Z47=FALSE, NOT((ISBLANK(N7)))),\"mm\",\"\"))","v":""},{"$f":"IF(AND(N5=3,(ISBLANK(N7))),\"CANNOT BE BLANK\",IF(AND(OR(N5=1,N5=2),AND((ISBLANK(N11)),(ISBLANK(N7)),AND(AA53=FALSE,AA54=FALSE,AA55=FALSE,AA56=FALSE,AA57=FALSE,AA58=FALSE,AA59=FALSE,AA61=FALSE,AA60=FALSE))),\"CANNOT BE BLANK\",IF(N5=4,\"MOUNTING SKETCH\",IF(ISNUMBER(SEARCH(\"MM\",N7)),\"DO NOT INCLUDE UNIT OF MEASURE\",IF(ISNUMBER(SEARCH(CHAR(34),N7)),\"DO NOT INCLUDE UNIT OF MEASURE\",IF(ISNUMBER(SEARCH(\"in\",N7)),\"DO NOT INCLUDE UNIT OF MEASURE\",\" \"))))))","v":" "},null,null,null,null,null,null,null,null,null,"AM_NM"]
[null,null,null,null,null,null,null,null,null,null,null,"DIM C:",null,null,{"$f":"IF(AND(Z47=TRUE, Z48=FALSE, NOT((ISBLANK(N8)))),\"inch(es)\",IF(AND(Z48=TRUE, Z47=FALSE, NOT((ISBLANK(N8)))),\"mm\",\"\"))","v":""},{"$f":"IF(AND(N5=3,(ISBLANK(N8))),\"CANNOT BE BLANK\",IF(AND(OR(N5=1,N5=2),AND((ISBLANK(N11)),(ISBLANK(N8)),AND(AA53=FALSE,AA54=FALSE,AA55=FALSE,AA56=FALSE,AA57=FALSE,AA58=FALSE,AA59=FALSE,AA61=FALSE,AA60=FALSE))),\"CANNOT BE BLANK\",IF(N5=4,\"MOUNTING SKETCH\",IF(ISNUMBER(SEARCH(\"MM\",N8)),\"DO NOT INCLUDE UNIT OF MEASURE\",IF(ISNUMBER(SEARCH(CHAR(34),N8)),\"DO NOT INCLUDE UNIT OF MEASURE\",IF(ISNUMBER(SEARCH(\"in\",N8)),\"DO NOT INCLUDE UNIT OF MEASURE\",\" \"))))))","v":" "},null,null,null,null,null,null,null,null,null,"AF_NF"]
[null,null,null,null,null,null,null,null,null,null,null,"A & B MEASURED FROM CENTRE OF HOLE",null,null,null,null,null,null,null,"Step 2: If Belimo Tech Support has advised on which actuators to use fill out the 'New Actuator' and '1 or 2 Actuator(s)' areas, otherwise leave blank.",null,null,null,null,null,"LM"]
[null,null,null,null,null,null,null,null,null,null,null,null," ---OR---",null,null,null,null,null,null,null,null,null,null,null,null,"LF"]
[null,"MOUNT STYLE 3: Attach Valve Photo",null,null,null,null,null,null,null,null,null," Bolt Circle (B.C.)",null,null,{"$f":"IF(AND(Z47=TRUE, Z48=FALSE, NOT((ISBLANK(N11)))),\"inch(es)\",IF(AND(Z48=TRUE, Z47=FALSE, NOT((ISBLANK(N11)))),\"mm\",\"\"))","v":""},{"$f":"IF(AND(OR(N5=1,N5=2),AND((ISBLANK(N11)),(ISBLANK(N6)),AA53=FALSE, AA54=FALSE, AA55=FALSE, AA56=FALSE, AA57=FALSE, AA58=FALSE, AA59=FALSE, AA61=FALSE, AA60=FALSE )),\"CANNOT BE BLANK\",IF(N5=3,\" \",IF(ISNUMBER(SEARCH(\"MM\",N11)),\"DO NOT INCLUDE UNIT OF MEASURE\",IF(ISNUMBER(SEARCH(CHAR(34),N11)),\"DO NOT INCLUDE UNIT OF MEASURE\",IF(ISNUMBER(SEARCH(\"in\",N11)),\"DO NOT INCLUDE UNIT OF MEASURE\",\"\")))))","v":""},null,null,null,null,null,null,null,null,null,"EF"]
[null,null,null,null,null,null,null,null,null,null,null,"DIM A:",{"$f":"IF(ISBLANK(N11),\" \", IF(OR(N5=1,N5=2,N5=4),SIN(45*PI()/180)*N11,IF(N5=3,SIN(90*PI()/180)*N11,\" \")))","v":" "},"DIM B:",{"$f":"IF(ISBLANK(N11), \"\", IF(OR(N5=1,N5=2,N5=4),SIN(45*PI()/180)*N11,IF(N5=3,\"N/A\",\"\")))","v":""},null,null,null,null,null,null,null,null,null,null,"LM_NM_AM_GM_N4"]
[null,null,null,null,null,null,null,null,null,null,null,null,null,null,null,null,null,null,null,null,null,null,null,null,null,"SY1_"]
[null,null,null,null,null,null,null,null,null,null,null,"DIM D:",null,null,{"$f":"IF(AND(Z47=TRUE, Z48=FALSE, NOT((ISBLANK(N14)))),\"inch(es)\",IF(AND(Z48=TRUE, Z47=FALSE, NOT((ISBLANK(N14)))),\"mm\",\"\"))","v":""},{"$f":"IF(AND(N5=3,(ISBLANK(N14))),\"CANNOT BE BLANK\",IF(ISNUMBER(SEARCH(\"MM\",N14)),\"DO NOT INCLUDE UNIT OF MEASURE\",IF(ISNUMBER(SEARCH(CHAR(34),N14)),\"DO NOT INCLUDE UNIT OF MEASURE\",IF(ISNUMBER(SEARCH(\"in\",N14)),\"DO NOT INCLUDE UNIT OF MEASURE\", IF(OR(N5=1,N5=2, N5=4),\" \",\"\")))))","v":""},null,null,null,null,null,null,null,null,null,"SY2_SY3"]
[null,null,null,null,null,null,null,null,null,null,null,"DIM E:",null,null,{"$f":"IF(AND(Z47=TRUE, Z48=FALSE, NOT((ISBLANK(N15)))),\"inch(es)\",IF(AND(Z48=TRUE, Z47=FALSE, NOT((ISBLANK(N15)))),\"mm\",\"\"))","v":""},{"$f":"IF(AND(N5=3,(ISBLANK(N15))),\"CANNOT BE BLANK\",IF(ISNUMBER(SEARCH(\"MM\",N15)),\"DO NOT INCLUDE UNIT OF MEASURE\",IF(ISNUMBER(SEARCH(CHAR(34),N15)),\"DO NOT INCLUDE UNIT OF MEASURE\",IF(ISNUMBER(SEARCH(\"in\",N15)),\"DO NOT INCLUDE UNIT OF MEASURE\", IF(AND(N5=4,(NOT(ISBLANK(N15)))),\"\",IF(OR(N5=1,N5=2,N5=4),\" \",\"\"))))))","v":""},null,null,null,"Step 3: MOUNT STYLE DIMENSIONS Choose the mount style that most closely resembles your valve’s mount style. If none are applicable choose mount style 4 and provide a sketch and dimensions based on the examples on the form. ",null,null,null,null,null,"OTHER"]
[null,null,null,null,null,null,null,null,null,null,null,null,null,null,null,null,null,null,null,null,null,null,null,null,null,"Actuator and Qty. list:"]
[null,null,null,null,null,null,null,null,null,null,null,"   MOUNTING HOLES:",null,null,null,null,null,null,null,null,null,null,null,null,null,"PR_PKR","LF"]
[null,null,null,null,null,null,null,null,null,null,null,null,null,"DRILLED",null,null,null,null,null,null,null,null,null,null,null,1,1]
[null,null,null,null,null,null,null,null,null,null,null,null,"DIA Ø",null,{"$f":"IF(AND(Z47=TRUE, Z48=FALSE, NOT((ISBLANK(N19)))),\"inch(es)\",IF(AND(Z48=TRUE, Z47=FALSE, NOT((ISBLANK(N19)))),\"mm\",\"\"))","v":""},{"$f":"IF(AND(ISBLANK(N5),ISBLANK(N22),ISBLANK(N19)),\"REQUIRE DRILLED OR TAPPED \",IF(AND(ISBLANK(N22),ISBLANK(N19),AA53=FALSE,AA54=FALSE,AA55=FALSE,AA56=FALSE,AA57=FALSE,AA58=FALSE,AA59=FALSE,AA61=FALSE,AA60=FALSE,OR(N5=1,N5=2,N5=4)),\"REQUIRE DRILLED OR TAPPED.\",IF(AND(ISBLANK(N22),ISBLANK(N19),N5=3),\"REQUIRE DRILLED OR TAPPED.\",\nIF(AND(ISBLANK(N19),NOT(ISBLANK(N22)),OR(N5=1,N5=2,N5=4),OR(AA53=TRUE,AA54=TRUE,AA55=TRUE,AA56=TRUE,AA57=TRUE,AA58=TRUE,AA59=TRUE,AA61=TRUE,AA60=TRUE)),\" \",IF(AND(ISBLANK(N19),NOT(ISBLANK(N22)),N5=3),\" \",IF(COUNT(FIND({\"a\",\"b\",\"c\",\"d\",\"e\",\"f\",\"g\",\"h\",\"i\",\"j\",\"k\",\"l\",\"m\",\"n\",\"o\",\"p\",\"q\",\"r\",\"s\",\"t\",\"u\",\"v\",\"w\",\"x\",\"y\",\"z\",\"A\",\"B\",\"C\",\"D\",\"E\",\"F\",\"G\",\"H\",\"I\",\"J\",\"K\",\"L\",\"M\",\"N\",\"O\",\"P\",\"Q\",\"R\",\"S\",\"T\",\"U\",\"V\",\"W\",\"X\",\"Y\",\"Z\",\"*\",\"=\",\"+\"},N19))>0, \"INVALID ENTRY\",\" \")))))\n)","v":"REQUIRE DRILLED OR TAPPED "},null,null,null,null,null,null,null,null,null,"SY4_SY5_SY6",2]
[null,null,null,null,null,null,null,null,null,null,null,null,"---OR---",null,null,null,null,null,null,null,null,null,null,null,null,1,"EF"]
[null,null,null,null,null,null,null,null,null,null,null,null,null,"TAPPED EX:10-32",null,null,null,null,null,null,null,null,null,null,null,"SY7_SY8",1]
[null,"MOUNT STYLE 4: SKETCH YOUR MOUNT STYLE USING ABOVE MOUNT STYLE EXAMPLES",null,null,null,null,null,null,null,null,null,null,"THREAD",null,null,{"$f":"IF(AND(ISBLANK(N5),ISBLANK(N22),ISBLANK(N19)),\"REQUIRE DRILLED OR TAPPED \",IF(AND(ISBLANK(N22),ISBLANK(N19),AA53=FALSE,AA54=FALSE,AA55=FALSE,AA56=FALSE,AA57=FALSE,AA58=FALSE,AA59=FALSE,AA61=FALSE,AA60=FALSE,OR(N5=1,N5=2,N5=4)),\"REQUIRE DRILLED OR TAPPED.\",IF(AND(ISBLANK(N22),ISBLANK(N19),N5=3),\"REQUIRE DRILLED OR TAPPED.\",\nIF(AND(ISBLANK(N19),NOT(ISBLANK(N22)),OR(N5=1,N5=2,N5=4),OR(AA53=TRUE,AA54=TRUE,AA55=TRUE,AA56=TRUE,AA57=TRUE,AA58=TRUE,AA59=TRUE,AA61=TRUE,AA60=TRUE)),\" \",IF(AND(ISBLANK(N19),NOT(ISBLANK(N22)),N5=3),\" \", IF(COUNT(FIND({\"a\",\"b\",\"c\",\"d\",\"e\",\"f\",\"g\",\"h\",\"i\",\"j\",\"k\",\"l\",\"n\",\"o\",\"p\",\"q\",\"r\",\"s\",\"t\",\"u\",\"v\",\"w\",\"x\",\"y\",\"z\",\"A\",\"B\",\"C\",\"D\",\"E\",\"F\",\"G\",\"H\",\"I\",\"J\",\"K\",\"L\",\"N\",\"O\",\"P\",\"Q\",\"R\",\"S\",\"T\",\"U\",\"V\",\"W\",\"X\",\"Y\",\"Z\",\"=\",\"*\",\"+\"},N22))>0,\"INVALID ENTRY\",\" \")))))\n)","v":"REQUIRE DRILLED OR TAPPED "},null,null,null,null,null,null,null,null,null,1,2]
[null,null,null,null,null,null,null,null,null,null,null,null,"SPEC."]
[null,null,null,null,null,null,null,null,null,null,null,null,null,null,null,null,null,null,null,"Step 4: Provide the distance between mounting holes (or the bolt circle or \ncheck an ISO box). If mount Style 3 \nprovide the height of the stem from the mounting shelf to the top of the stem. \nand the width and diameter of the \nmounting shelf. Provide the diameter \nor the thread spec. of the mounting \nholes. Please note any error messages \nthat may appear and make \ncorrections according to them."]
[null,"STEM STYLE 1",null,null,null,null,"STEM STYLE 2",null,null,null,"STEM STYLE 3",null,null,null,"STEM STYLE 4",null,null,null,null,null,null,null,null,null,null,"SY9_SY10_SY11_SY12"]
[null,null,null,null,null,null,null,null,null,null,{"$f":"IF(AND(Z44=FALSE,Z43=FALSE,C41=3),\"SQUARE OR DIAMOND MUST BE CHECKED\",IF(AND(Z44=TRUE,Z43=TRUE,C41=3),\"SQUARE OR DIAMOND MUST BE CHECKED\",IF(AND(C41<>3,NOT(ISBLANK(C41))),\" \",\"\")))","v":""},null,null,null,{"$f":"IF(AND(AA44=FALSE,AA43=FALSE,C41=4),\"SQUARE OR DIAMOND MUST BE CHECKED\",IF(AND(AA44=TRUE,AA43=TRUE,C41=4),\"SQUARE OR DIAMOND MUST BE CHECKED\",IF(AND(C41<>4,NOT(ISBLANK(C41))),\" \",\"\")))","v":""},null,null,null,null,null,null,null,null,null,null,1,"LM_NM_AM_GM_N4"]
[null,null,null,null,null,null,null,null,null,null,null,null,null,null,null,null,null,null,null,null,null,null,null,null,null,"GM_GK",1]
[null,null,null,null,null,null,null,null,null,null,"CHECK ONE:",null,null,null,"CHECK ONE:",null,null,null,null,null,null,null,null,null,null,1,2]
[null,null,null,null,null,null,null,null,null,null,null,null,null,null,null,null,null,null,null,null,null,null,null,null,null,2,"SY1"]
[]
[null,null,null,null,null,null,null,null,null,null,null,null,null,null,null,null,null,null,null,null,null,null,null,null,null,1,"SY2_SY3"]
[null,null,null,null,null,null,null,null,null,null,null,null,null,null,null,null,null,null,null,null,null,null,null,null,null,"AM_NM",1]
[null,null,null,null,null,null,null,null,null,null,null,null,null,null,null,null,null,null,null,null,null,null,null,null,null,1,"OTHER"]
[null,null,null,null,null,null,null,null,null,null,null,null,null,null,null,null,null,null,null,null,null,null,null,null,null,2,1]
[null,null,null,null,null,null,null,null,null,null,null,null,null,null,null,null,null,null,null,null,null,null,null,null,null,"AF_NF",2]
[null,null,null,null,null,null,null,null,null,null,null,null,null,null,null,null,null,null,null,null,null,null,null,null,null,1,"LM"]
[null,null,null,null,null,null,null,null,null,null,null,null,null,null,null,null,null,null,null,"Step 5: STEM STYLE DIMENSIONS Choose the stem style that most closely resembles your valve’s stem style. ",null,null,null,null,null,2,1]
[null,null,null,null,null,null,null,null,null,null,null,null,null,null,null,null,null,null,null,null,null,null,null,null,null,null,2]
[]
[]
[null,"SHAFT STYLE ",null,"DIM F:",null,null,"DIM G:",null,null,"DIM H:",null,null,"DIM J:",null,null,"DIM K:",null,null,null,"Step 6: Provide the valve stem diameter and the length and width of the drive surface. If applicable provide nut height and width across points. Please note any error messages that may appear and \nmake corrections according to them.",null,null,null,null,null,"SQUARE/ DIAMOND BOXES"]
[null,null,null,null,null,{"$f":"IF(AND(Z47=TRUE, Z48=FALSE, NOT((ISBLANK(E41)))),\"inch(es)\",IF(AND(Z48=TRUE, Z47=FALSE, NOT((ISBLANK(E41)))),\"mm\",\"\"))","v":""},null,null,{"$f":"IF(AND(Z47=TRUE, Z48=FALSE, NOT((ISBLANK(H41)))),\"inch(es)\",IF(AND(Z48=TRUE, Z47=FALSE, NOT((ISBLANK(H41)))),\"mm\",\"\"))","v":""},null,null,{"$f":"IF(AND(Z47=TRUE, Z48=FALSE, NOT((ISBLANK(K41)))),\"inch(es)\",IF(AND(Z48=TRUE, Z47=FALSE, NOT((ISBLANK(K41)))),\"mm\",\"\"))","v":""},null,null,{"$f":"IF(AND(Z47=TRUE, Z48=FALSE, NOT((ISBLANK(N41)))),\"inch(es)\",IF(AND(Z48=TRUE, Z47=FALSE, NOT((ISBLANK(N41)))),\"mm\",\"\"))","v":""},null,null,{"$f":"IF(AND(Z47=TRUE, Z48=FALSE, NOT((ISBLANK(Q41)))),\"inch(es)\",IF(AND(Z48=TRUE, Z47=FALSE, NOT((ISBLANK(Q41)))),\"mm\",\"\"))","v":""},null,null,null,null,null,null,null,"STEM STYLE 3","STEM STYLE 4"]
[null,{"$f":"IF(OR(C41=1,C41=2,C41=3,C41=4),\"\",IF(NOT(ISBLANK(N5)),\"SHAFT STYLE REQUIRED.\",\"SHAFT STYLE REQUIRED\"))","v":"SHAFT STYLE REQUIRED"},null,{"$f":"IF(AND(ISBLANK(E41),OR(C41=1,C41=2,C41=3,C41=4)),\"CANNOT BE BLANK\",IF(ISNUMBER(SEARCH(\"MM\",E41)),\"DO NOT INCLUDE UNIT OF MEASURE\",IF(ISNUMBER(SEARCH(CHAR(34),E41)),\"DO NOT INCLUDE UNIT OF MEASURE\",IF(ISNUMBER(SEARCH(\"in\",E41)),\"DO NOT INCLUDE UNIT OF MEASURE\",IF(AND((NOT(ISBLANK(C41))),N5=3,E41>N15),\"CANNOT BE GREATER THAN DIM E\",\"\")))))","v":""},null,null,{"$f":"IF(AND(ISBLANK(H41),OR(C41=1,C41=2,C41=3,C41=4)),\"CANNOT BE BLANK\",IF(ISNUMBER(SEARCH(\"MM\",H41)),\"DO NOT INCLUDE UNIT OF MEASURE\",IF(ISNUMBER(SEARCH(CHAR(34),H41)),\"DO NOT INCLUDE UNIT OF MEASURE\",IF(ISNUMBER(SEARCH(\"in\",H41)),\"DO NOT INCLUDE UNIT OF MEASURE\",IF(AND((NOT(ISBLANK(C41))),N5=3,H41>N15),\"CANNOT BE GREATER THAN DIM E\",IF(AND(OR(C41=1,C41=2,C41=3,C41=4),E41>H41),\"CANNOT BE LESS THAN DIM F\",\"\"))))))","v":""},null,null,{"$f":"IF(AND(ISBLANK(K41),OR(C41=1,C41=2,C41=3,C41=4)),\"CANNOT BE BLANK\", IF(ISNUMBER(SEARCH(\"MM\",K41)),\"DO NOT INCLUDE UNIT OF MEASURE\", IF(ISNUMBER(SEARCH(CHAR(34),K41)),\"DO NOT INCLUDE UNIT OF MEASURE\", IF(ISNUMBER(SEARCH(\"in\",K41)),\"DO NOT INCLUDE UNIT OF MEASURE\", \"\"))))","v":""},null,null,{"$f":"IF(AND(ISBLANK(N41),OR(C41=1,C41=2)),\"CANNOT BE BLANK\",IF(ISNUMBER(SEARCH(\"MM\",N41)),\"DO NOT INCLUDE UNIT OF MEASURE\",IF(ISNUMBER(SEARCH(CHAR(34),N41)),\"DO NOT INCLUDE UNIT OF MEASURE\",IF(ISNUMBER(SEARCH(\"in\",N41)),\"DO NOT INCLUDE UNIT OF MEASURE\",IF(AND(OR(C41=1, C41=2), K41>=N41),\"CANNOT BE LESS THAN OR EQUAL TO DIM H\",\"\")))))","v":""},null,null,{"$f":"IF(AND(ISBLANK(Q41),OR(C41=1,C41=3)),\"CANNOT BE BLANK\",IF(AND(ISBLANK(E41),OR(C41=7,C41=9)),\"MAY NOT BE REQUIRED\",IF(ISNUMBER(SEARCH(\"MM\",Q41)),\"DO NOT INCLUDE UNIT OF MEASURE\",IF(ISNUMBER(SEARCH(CHAR(34),Q41)),\"DO NOT INCLUDE UNIT OF MEASURE\",IF(ISNUMBER(SEARCH(\"in\",Q41)),\"DO NOT INCLUDE UNIT OF MEASURE\",IF(AND(OR(C41=1, C41=3), N41>=Q41),\"CANNOT BE LESS THAN OR EQUAL TO DIM J\",\"\"))))))","v":""},null,null,null,null,null,null,null,null,null,false,false]
[null,null,null,null,null,null,null,null,null,null,null,null,null,null,null,null,null,null,null,null,null,null,null,null,null,false,false]
[]
[null,"ACTUATOR",null,null,null,null,null,null,null,null,null,null,null,null,null,"ACTUATOR ORIENTATION:"]
[null,"EXISTING ACTUATOR MODEL:",null,null,null,null,"CONTROL TYPE:",null,"ON/OFF",null,"FLOATING POINT",null,null,null,null,null,null,null,null,null,null,null,null,null,null,false,"Inches"]
[null,"FAIL SAFE:",null,"YES","NO",null,null,null,null,null,null,"VDC",null,"PWM",null,null,null,null,null,null,null,null,null,null,null,false,"Milimeters"]
[null,"FAIL POSSITION:",null,"NO","NC",null,"INDOOR",null,"OUTDOOR",null,null,"RANGE:",null,"RANGE:"]
[null,"FREQUENCY OF OPERATION (Specify how often):",null,null,null,null,null,"DAILY:",null,"WEEKLY:",null,"MONTHLY:",null,null,"VOLTAGE:",null,null,null,null,"Step 7: ACTUATOR Provide information on the environment and process that this linkage system will be utilized in."]
[]
[null,"COMPANY:",null,null,null,null,{"$f":"IF((ISBLANK(D52)),\"REQUIRED\",\"\")","v":"REQUIRED"},"QUANTITY:",null,null,null,null,"VALVE MANUFACTURE:",null,null,null,null,{"$f":"IF((ISBLANK(O52)),\"REQUIRED\",\"\")","v":"REQUIRED"},null,null,null,null,null,null,null,"Mount style","ISO BOX"]
[null,null,null,null,null,null,null,null,null,null,null,null,null,null,null,null,null,null,null,null,null,null,null,null,null,1,false]
[null,"JOB NAME: ",null,null,null,null,null,"MEDIA TEMP: ",null,null,null,null,"VALVE SERIES: ",null,null,null,null,null,null,null,null,null,null,null,null,2,false]
[null,null,null,null,null,null,null,null,null,null,null,null,null,null,null,null,null,null,null,"Step 8: Fill this form as fully as possible. Red fields are absolutely necessary. \nError and attention fields will always be\nin Red. Please note any error messages that may appear and make corrections according to them. Provide dimensions\n to the nearest 0.001”",null,null,null,null,null,3,false]
[null,"PO#:",null,null,null,null,null,"MEDIA TYPE:",null,null,null,null,"VALVE MODEL:",null,null,null,null,null,null,null,null,null,null,null,null,4,false]
[null,null,null,null,null,null,null,null,null,null,null,null,null,null,null,null,null,null,null,null,null,null,null,null,null,"Shaft Style",false]
[null,"PHONE#:",null,null,null,null,null,"SYSTEM PRESSURE:",null,null,null,null,"VALVE SIZE:",null,null,null,null,{"$f":"IF((ISBLANK(O58)),\"REQUIRED\",\"\")","v":"REQUIRED"},null,null,null,null,null,null,null,1,false]
[null,null,null,null,null,null,null,null,null,null,null,null,null,null,null,null,null,null,null,null,null,null,null,null,null,2,false]
[null,"EMAIL: ",null,null,null,null,{"$f":"IF((ISBLANK(C60)),\"REQUIRED\",\"\")","v":"REQUIRED"},"VALVE TAG/LOCATION: ",null,null,null,null,"2 WAY/3 WAY: ",null,null,null,null,{"$f":"IF((ISBLANK(O60)),\"REQUIRED\",\"\")","v":"REQUIRED"},null,null,null,null,null,null,null,3,false]
[null,null,null,null,null,null,null,null,null,null,null,null,null,null,null,null,null,null,null,null,null,null,null,null,null,4,false]
[null,"NOTE: THIS INFORMATION WILL BE UTILIZED IN THE FABRICATION OF A CUSTOM LINKAGE SYSTEM FOR YOUR VALVE REQUIREMENT; THEREFORE, IT IS ESSENTIAL THAT THE ABOVE DIMENSIONS BE FURNISHED WITH READINGS TAKEN TO THE NEAREST .001\". ANY ERRONEOUS DIMENSIONS FURNISHED WHICH RESULT IN IMPROPER FIT OF THIS LINKAGE SYSTEM ARE NOT THE RESPONSIBILITY OF BELIMO AIR CONTROLS. ANY REWORK REQUIRED WILL RESULT IN AN EXTRA CHARGE. "]
[]
[]
[null,"CUSTOM KITS ARE DESIGNED TO YOUR UNIQUE SPECIFICATIONS AND ARE NOT RETURNABLE\n"]
[null,null,null,null,null,null,null,null,null,null,null,null,null,null,null,null,null,null,null,"Step 9: Click the 'Submit Form' button below or save this form as a .xlsx file and send a copy to Belimo tech support. NOTE: Macro-enabled workbooks (.xlsm file types) cannot be accepted."]
[null,"COMPANY CONTACT/DIMENSIONS PROVIDED BY:",null,null,null,null,null,null,null,null,null,null,null,"DATE:"]
[]
[]
[]
[]
[]
[null,"INTERNAL USE ONLY",null,"QUOTE#",null,null,null,"SO#",null,null,null,"NOTES:"]
[null,null,null,"NEW ACTUATOR:",null,null,null,"Line #"]